{"text_format":"1","workbook":"xlsx","n_sheets":6,"sheets":["Hinweise","Grundbuch","Hauptbuch","GuV","Bilanzbuch","Kontenplan"],"not_rendered":{"charts":0,"images":19,"macros":1,"external_links":0,"defined_names":0,"comments":0,"pivot_tables":0},"unopened":[],"bounds":{"document_bytes":16777216,"sheet_cells":100000,"rows_first":2000,"rows_last":500,"rows_between":2000,"halvings":0,"cell_chars":16384,"cell_head_chars":4096},"cells_cut":0,"cells_raw":0,"read":"whole","date_system":"1900"}

{"sheet":"Hinweise","index":0,"n_rows":68,"n_cols":7,"rows_kept":68,"cut":false,"hidden":false,"merged":[[59,1,59,3],[0,0,0,7],[2,0,2,1],[58,1,58,3],[57,1,57,3],[8,4,10,7],[4,0,10,3]]}
["Geschäftsgang 16"]
[]
["Voraussetzungen"]
["Um den Geschäftsgang buchen zu können müssen Sie Kenntnisse über die folgenden Lehrninhalte haben:"]
["Buchungen auf Bestandskonten, Buchungen auf Erfolgskonten, Bestandsveränderungen, Abschreibungen, Umsatzsteuer, Buchung von Bezugskosten, Buchung von Nachlässen und Erlösberichtigungen, Kontenabschluss im Hauptbuch"]
[]
[]
[]
[null,null,null,null,"Für den Kontenabschluss müssen Sie Grundkenntnisse in der                    Tabellenkalkulation haben! "]
[]
[]
[]
["Buchen im Grundbuch"]
["1. Wählen Sie die Tabelle \"Grundbuch\"."]
[]
["2. Buchen Sie die Geschäftsvorfälle"]
["    entweder durch Direkteingabe in die entsprechenden Felder des Grundbuchs (Kontennummern und Beträge)"]
["    oder durch Aufruf von Buchungsfenstern. (Klicken Sie dazu jeweils auf die Schaltfläche \"Buchung\" und beenden"]
["    Sie die Eingabe  mit \"OK\".)"]
["    Die Kontennummern sind vierstellig anzugeben. (siehe Kontenplan). Bei zusammengesetzten Buchungssätzen"]
["    sind die Buchungen nach der Höhe der Beträge geordnet vorzunehmen. "]
[]
["3. Sie können sich den Kontenplan mit Kontennummern jederzeit durch Klick auf den"]
["    entsprechenden Button anzeigen lassen."]
[]
["4. Die Richtigkeit Ihrer Buchungen wird bestätigt oder Sie werden auf"]
["    Fehler hingewiesen. (Ohne Buchung werden Fehler angezeigt.)"]
[]
["Buchen in Hauptbuch, GuV und Schlussbilanz"]
["1. Navigation"]
["    Sie können über die Blattregisterkarten die Tabellen Grundbuch, Hauptbuch, GuV und Bilanzbuch ansteuern."]
["    Einen direkten Zugriff auf die jeweils benötigen Konten haben Sie über die folgenden Schalter:"]
[null,"Hauptbuchkonten",null,null,"Grundbuch",null,"Nachlässe (Rohstoffe)"]
[null,"Gewinn und Verlust",null,null,"Schlussbilanz",null,"Rohstoffe"]
[null,"Bestandsveränderungen",null,null,"Umsatzsteuer",null,"Erlösberichtigungen"]
[null,"Vorsteuer",null,null,"Unfertige Erzeugnisse",null,"Umsatzerlöse"]
[null,"Fertige Erzeugnisse",null,null,"Bezugskosten (Rohst.)"]
["   Über diese Schalter können Sie aus dem Grundbuch heraus das für die jeweilige Buchung benötigte Konto"]
["   direkt aufrufen. Dieses Konto wird dann jeweils mit einem X markiert."]
[]
["2. Buchungen"]
["    Die Systematik wird Ihnen an einem Screenshot das Kontos Forderungen gezeigt."]
[]
["    lfd. Nummern ",null,null,null,"lfd. Nummern",null,"               Navigation"]
[]
[]
[]
[]
[]
[]
[]
[]
[]
[null,null,null,null,"Beträge"]
[]
[null,"Kontenanruf (in jeder Zelle steht eine Kontonummer)",null,null,null,null,"   Abschlussmeldung"]
[]
[null,"Eröffnungsbuchungen (bereits gebucht)",null,null,null,"A   = Abschlussbuchung"]
[null,"laufende Buchungen",null,null,null,"AB = Anfangsbestand"]
[null,"Abschlussbuchungen und Berechnungen",null,null,null,"SB = Schlussbestand"]
[]
["3. Abschluss"]
["    Die Konten sind unter fogenden Bedingungen richtig abgeschlossen."]
["    - Die Nummern der Gegenkonten werden gemäß den Grundsätzen ordnungsgemäßer Buchführung geordnet,"]
["      in die dafür vorgesehenen Zellen eingetragen. Die Reihenfolge der Eintragungen muss mit dem Grundbuch"]
["      übereinstimmen."]
["    - Die Beträge sind richtig eingetragen."]
["    - Die Abschlussberechnungen sind korrekt."]

{"sheet":"Grundbuch","index":1,"n_rows":111,"n_cols":7,"rows_kept":111,"cut":false,"hidden":false,"merged":[[86,1,88,2],[86,5,86,6],[90,0,91,0],[87,5,87,6],[88,5,88,6],[106,0,108,0],[101,5,102,6],[103,5,103,6],[104,5,104,6],[102,1,102,2],[75,0,77,0],[79,1,81,2],[79,5,79,6],[80,5,80,6],[81,5,81,6],[83,0,84,0],[49,5,49,6],[50,5,50,6],[51,5,51,6],[53,0,54,0],[56,1,58,2],[56,5,56,6],[57,5,57,6],[58,5,58,6],[35,5,35,6],[36,5,36,6],[37,5,37,6],[39,0,40,0],[49,1,51,2],[42,5,42,6],[43,5,43,6],[44,5,44,6],[46,0,47,0],[42,1,44,2],[1,0,1,4],[2,0,2,4],[60,0,61,0],[70,1,73,2],[70,5,71,6],[72,5,72,6],[73,5,73,6],[67,0,68,0],[32,0,33,0],[35,1,37,2],[63,1,65,2],[63,5,63,6],[64,5,64,6],[65,5,65,6],[93,0,93,2],[110,0,110,6],[96,5,96,6],[98,0,99,0],[94,5,94,6],[95,5,95,6],[5,5,5,6],[6,5,6,6],[7,5,7,6],[5,1,7,2],[28,5,28,6],[29,5,29,6],[9,0,10,0],[12,1,14,2],[12,5,12,6],[13,5,13,6],[14,5,14,6],[28,1,30,2],[30,5,30,6],[24,0,26,0],[16,0,17,0],[19,1,22,2],[19,5,20,6],[21,5,21,6],[22,5,22,6]]}
[]
["Geschäftsvorfälle"]
["Grundbuch"]
[null,null,null,null,null,null,0.19]
[]
["1.","Einkauf von Baumwollstoffen auf Ziel bei der Weberei Holzmann KG,",null,"netto",43000,{"$f":"IF(AND(B10=\"2000\",B11=\"2600\",E10=\"4400\"),\"Die Konten sind richtig!\",\"Mindestens ein Konto ist falsch!\")","v":"Mindestens ein Konto ist falsch!"}]
["Geschäftsvorfall",null,null,"USt.",{"$f":"E6*$G$4","v":8170},{"$f":"IF(AND(D10=E6,D11=E7,G10=E8),\"Die Beträge sind richtig!\",\"Mindestens ein Betrag ist falsch!\")","v":"Mindestens ein Betrag ist falsch!"}]
[null,null,null,"brutto",{"$f":"SUM(E6:E7)","v":51170},{"$f":"IF(AND(F6=\"Die Konten sind richtig!\",F7=\"Die Beträge sind richtig!\"),\"Alles richtig!\",\"Es sind noch Fehler vorhanden!\")","v":"Es sind noch Fehler vorhanden!"}]
[null,"Soll","Konto","€","Haben","Konto","€"]
["Buchungssatz","",{"$f":"IF(B10=\"\",\"\",VLOOKUP(B10,Kontenplan!$A$4:$B$31,2))","v":""},null,"",{"$f":"IF(E10=\"\",\"\",VLOOKUP(E10,Kontenplan!$A$4:$B$31,2))","v":""}]
[null,"",{"$f":"IF(B11=\"\",\"\",VLOOKUP(B11,Kontenplan!$A$4:$B$31,2))","v":""},null,null,{"$f":"IF(E11=\"\",\"\",VLOOKUP(E11,Kontenplan!$A$4:$B$31,2))","v":""}]
[]
["2.","Barzahlung von Bezugskosten für die Lieferung von Rohstoffen aus Geschäftsvorfall 1.,",null,"netto",1200,{"$f":"IF(AND(B17=\"2001\",B18=\"2600\",E17=\"2880\"),\"Die Konten sind richtig!\",\"Mindestens ein Konto ist falsch!\")","v":"Mindestens ein Konto ist falsch!"}]
["Geschäftsvorfall",null,null,"USt.",{"$f":"E13*$G$4","v":228},{"$f":"IF(AND(D17=E13,D18=E14,G17=E15),\"Die Beträge sind richtig!\",\"Mindestens ein Betrag ist falsch!\")","v":"Mindestens ein Betrag ist falsch!"}]
[null,null,null,"brutto",{"$f":"SUM(E13:E14)","v":1428},{"$f":"IF(AND(F13=\"Die Konten sind richtig!\",F14=\"Die Beträge sind richtig!\"),\"Alles richtig!\",\"Es sind noch Fehler vorhanden!\")","v":"Es sind noch Fehler vorhanden!"}]
[null,"Soll","Konto","€","Haben","Konto","€"]
["Buchungssatz","",{"$f":"IF(B17=\"\",\"\",VLOOKUP(B17,Kontenplan!$A$4:$B$31,2))","v":""},null,"",{"$f":"IF(E17=\"\",\"\",VLOOKUP(E17,Kontenplan!$A$4:$B$31,2))","v":""}]
[null,"",{"$f":"IF(B18=\"\",\"\",VLOOKUP(B18,Kontenplan!$A$4:$B$31,2))","v":""},null,null,{"$f":"IF(E18=\"\",\"\",VLOOKUP(E18,Kontenplan!$A$4:$B$31,2))","v":""}]
[]
["3.","Die Black and Blue Jeans GmbH begleicht eine Ausgangsrechnung abzüglich 3% Skonto durch Banküberweisung.",null,"Gutschrift",{"$f":"E23-E22-E21","v":34629},{"$f":"IF(AND(B25=\"2800\",B26=\"5001\",B27=\"4800\",E25=\"2400\"),\"Die Konten sind richtig!\",\"Mindestens ein Konto ist falsch!\")","v":"Mindestens ein Konto ist falsch!"}]
[null,null,null,"Skonto",{"$f":"ROUND((E23*3%)-(E23*3%*($G$4*100))/(100+($G$4*100)),2)","v":900}]
["Geschäftsvorfall",null,null,"USt.",{"$f":"ROUND(E21*$G$4,2)","v":171},{"$f":"IF(AND(D25=E20,D26=E21,D27=E22,G25=E23),\"Die Beträge sind richtig!\",\"Mindestens ein Betrag ist falsch!\")","v":"Mindestens ein Betrag ist falsch!"}]
[null,null,null,"Bruttobetrag",35700,{"$f":"IF(AND(F20=\"Die Konten sind richtig!\",F22=\"Die Beträge sind richtig!\"),\"Alles richtig!\",\"Es sind noch Fehler vorhanden!\")","v":"Es sind noch Fehler vorhanden!"}]
[null,"Soll","Konto","€","Haben","Konto","€"]
["Buchungssatz","",{"$f":"IF(B25=\"\",\"\",VLOOKUP(B25,Kontenplan!$A$4:$B$31,2))","v":""},null,"",{"$f":"IF(E25=\"\",\"\",VLOOKUP(E25,Kontenplan!$A$4:$B$31,2))","v":""}]
[null,"",{"$f":"IF(B26=\"\",\"\",VLOOKUP(B26,Kontenplan!$A$4:$B$31,2))","v":""},null,null,{"$f":"IF(E26=\"\",\"\",VLOOKUP(E26,Kontenplan!$A$4:$B$31,2))","v":""}]
[null,"",{"$f":"IF(B27=\"\",\"\",VLOOKUP(B27,Kontenplan!$A$4:$B$31,2))","v":""},null,null,{"$f":"IF(E27=\"\",\"\",VLOOKUP(E27,Kontenplan!$A$4:$B$31,2))","v":""}]
[]
["4.","Die Tropic GmbH kauft einen Lieferwagen auf Ziel,",null,"netto",42000,{"$f":"IF(AND(B33=\"0840\",B34=\"2600\",E33=\"4400\"),\"Die Konten sind richtig!\",\"Mindestens ein Konto ist falsch!\")","v":"Mindestens ein Konto ist falsch!"}]
["Geschäftsvorfall",null,null,"USt.",{"$f":"E29*$G$4","v":7980},{"$f":"IF(AND(D33=E29,D34=E30,G33=E31),\"Die Beträge sind richtig!\",\"Mindestens ein Betrag ist falsch!\")","v":"Mindestens ein Betrag ist falsch!"}]
[null,null,null,"brutto",{"$f":"SUM(E29:E30)","v":49980},{"$f":"IF(AND(F29=\"Die Konten sind richtig!\",F30=\"Die Beträge sind richtig!\"),\"Alles richtig!\",\"Es sind noch Fehler vorhanden!\")","v":"Es sind noch Fehler vorhanden!"}]
[null,"Soll","Konto","€","Haben","Konto","€"]
["Buchungssatz","",{"$f":"IF(B33=\"\",\"\",VLOOKUP(B33,Kontenplan!$A$4:$B$31,2))","v":""},null,"",{"$f":"IF(E33=\"\",\"\",VLOOKUP(E33,Kontenplan!$A$4:$B$31,2))","v":""}]
[null,"",{"$f":"IF(B34=\"\",\"\",VLOOKUP(B34,Kontenplan!$A$4:$B$31,2))","v":""},null,null,{"$f":"IF(E34=\"\",\"\",VLOOKUP(E34,Kontenplan!$A$4:$B$31,2))","v":""}]
[]
["5.","Rücksendung beschädigter Stoffbahnen aus Geschäftsvorfall 1. an die Weberei Holzmann KG,",null,"netto",4500,{"$f":"IF(AND(B40=\"4400\",E40=\"2000\",E41=\"2600\"),\"Die Konten sind richtig!\",\"Mindestens ein Konto ist falsch!\")","v":"Mindestens ein Konto ist falsch!"}]
["Geschäftsvorfall",null,null,"USt.",{"$f":"E36*$G$4","v":855},{"$f":"IF(AND(D40=E38,G40=E36,G41=E37),\"Die Beträge sind richtig!\",\"Mindestens ein Betrag ist falsch!\")","v":"Mindestens ein Betrag ist falsch!"}]
[null,null,null,"brutto",{"$f":"SUM(E36:E37)","v":5355},{"$f":"IF(AND(F36=\"Die Konten sind richtig!\",F37=\"Die Beträge sind richtig!\"),\"Alles richtig!\",\"Es sind noch Fehler vorhanden!\")","v":"Es sind noch Fehler vorhanden!"}]
[null,"Soll","Konto","€","Haben","Konto","€"]
["Buchungssatz","",{"$f":"IF(B40=\"\",\"\",VLOOKUP(B40,Kontenplan!$A$4:$B$31,2))","v":""},null,"",{"$f":"IF(E40=\"\",\"\",VLOOKUP(E40,Kontenplan!$A$4:$B$31,2))","v":""}]
[null,null,{"$f":"IF(B41=\"\",\"\",VLOOKUP(B41,Kontenplan!$A$4:$B$31,2))","v":""},null,"",{"$f":"IF(E41=\"\",\"\",VLOOKUP(E41,Kontenplan!$A$4:$B$31,2))","v":""}]
[]
["6.","Barzahlung für eine Maschinenreparatur",null,"netto",1300,{"$f":"IF(AND(B47=\"6160\",B48=\"2600\",E47=\"2880\"),\"Die Konten sind richtig!\",\"Mindestens ein Konto ist falsch!\")","v":"Mindestens ein Konto ist falsch!"}]
["Geschäftsvorfall",null,null,"USt.",{"$f":"E43*$G$4","v":247},{"$f":"IF(AND(D47=E43,D48=E44,G47=E45),\"Die Beträge sind richtig!\",\"Mindestens ein Betrag ist falsch!\")","v":"Mindestens ein Betrag ist falsch!"}]
[null,null,null,"brutto",{"$f":"SUM(E43:E44)","v":1547},{"$f":"IF(AND(F43=\"Die Konten sind richtig!\",F44=\"Die Beträge sind richtig!\"),\"Alles richtig!\",\"Es sind noch Fehler vorhanden!\")","v":"Es sind noch Fehler vorhanden!"}]
[null,"Soll","Konto","€","Haben","Konto","€"]
["Buchungssatz","",{"$f":"IF(B47=\"\",\"\",VLOOKUP(B47,Kontenplan!$A$4:$B$31,2))","v":""},null,"",{"$f":"IF(E47=\"\",\"\",VLOOKUP(E47,Kontenplan!$A$4:$B$31,2))","v":""}]
[null,"",{"$f":"IF(B48=\"\",\"\",VLOOKUP(B48,Kontenplan!$A$4:$B$31,2))","v":""},null,null,{"$f":"IF(E48=\"\",\"\",VLOOKUP(E48,Kontenplan!$A$4:$B$31,2))","v":""}]
[]
["7.","Die Kick Moden GmbH erhält einen Bonus,",null,"netto",750,{"$f":"IF(AND(B54=\"5001\",B55=\"4800\",E54=\"2400\"),\"Die Konten sind richtig!\",\"Mindestens ein Konto ist falsch!\")","v":"Mindestens ein Konto ist falsch!"}]
["Geschäftsvorfall",null,null,"USt.",{"$f":"E50*$G$4","v":142.5},{"$f":"IF(AND(D54=E50,D55=E51,G54=E52),\"Die Beträge sind richtig!\",\"Mindestens ein Betrag ist falsch!\")","v":"Mindestens ein Betrag ist falsch!"}]
[null,null,null,"brutto",{"$f":"SUM(E50:E51)","v":892.5},{"$f":"IF(AND(F50=\"Die Konten sind richtig!\",F51=\"Die Beträge sind richtig!\"),\"Alles richtig!\",\"Es sind noch Fehler vorhanden!\")","v":"Es sind noch Fehler vorhanden!"}]
[null,"Soll","Konto","€","Haben","Konto","€"]
["Buchungssatz","",{"$f":"IF(B54=\"\",\"\",VLOOKUP(B54,Kontenplan!$A$4:$B$31,2))","v":""},null,"",{"$f":"IF(E54=\"\",\"\",VLOOKUP(E54,Kontenplan!$A$4:$B$31,2))","v":""}]
[null,"",{"$f":"IF(B55=\"\",\"\",VLOOKUP(B55,Kontenplan!$A$4:$B$31,2))","v":""},null,null,{"$f":"IF(E55=\"\",\"\",VLOOKUP(E55,Kontenplan!$A$4:$B$31,2))","v":""}]
[]
["8.","Gutschrift der Weberei Holzmann KG aufgrund eines Mangels an der Lieferung von Geschäftsvorfall 1.,",null,"netto",2200,{"$f":"IF(AND(B61=\"4400\",E61=\"2002\",E62=\"2600\"),\"Die Konten sind richtig!\",\"Mindestens ein Konto ist falsch!\")","v":"Mindestens ein Konto ist falsch!"}]
["Geschäftsvorfall",null,null,"USt.",{"$f":"E57*$G$4","v":418},{"$f":"IF(AND(D61=E59,G61=E57,G62=E58),\"Die Beträge sind richtig!\",\"Mindestens ein Betrag ist falsch!\")","v":"Mindestens ein Betrag ist falsch!"}]
[null,null,null,"brutto",{"$f":"SUM(E57:E58)","v":2618},{"$f":"IF(AND(F57=\"Die Konten sind richtig!\",F58=\"Die Beträge sind richtig!\"),\"Alles richtig!\",\"Es sind noch Fehler vorhanden!\")","v":"Es sind noch Fehler vorhanden!"}]
[null,"Soll","Konto","€","Haben","Konto","€"]
["Buchungssatz","",{"$f":"IF(B61=\"\",\"\",VLOOKUP(B61,Kontenplan!$A$4:$B$31,2))","v":""},null,"",{"$f":"IF(E61=\"\",\"\",VLOOKUP(E61,Kontenplan!$A$4:$B$31,2))","v":""}]
[null,null,{"$f":"IF(B62=\"\",\"\",VLOOKUP(B62,Kontenplan!$A$4:$B$31,2))","v":""},null,"",{"$f":"IF(E62=\"\",\"\",VLOOKUP(E62,Kontenplan!$A$4:$B$31,2))","v":""}]
[]
["9.","Barzahlung von Ausgangsfrachten,",null,"netto",470,{"$f":"IF(AND(B68=\"6140\",B69=\"2600\",E68=\"2880\"),\"Die Konten sind richtig!\",\"Mindestens ein Konto ist falsch!\")","v":"Mindestens ein Konto ist falsch!"}]
["Geschäftsvorfall",null,null,"USt.",{"$f":"E64*$G$4","v":89.3},{"$f":"IF(AND(D68=E64,D69=E65,G68=E66),\"Die Beträge sind richtig!\",\"Mindestens ein Betrag ist falsch!\")","v":"Mindestens ein Betrag ist falsch!"}]
[null,null,null,"brutto",{"$f":"SUM(E64:E65)","v":559.29999999999995},{"$f":"IF(AND(F64=\"Die Konten sind richtig!\",F65=\"Die Beträge sind richtig!\"),\"Alles richtig!\",\"Es sind noch Fehler vorhanden!\")","v":"Es sind noch Fehler vorhanden!"}]
[null,"Soll","Konto","€","Haben","Konto","€"]
["Buchungssatz","",{"$f":"IF(B68=\"\",\"\",VLOOKUP(B68,Kontenplan!$A$4:$B$31,2))","v":""},null,"",{"$f":"IF(E68=\"\",\"\",VLOOKUP(E68,Kontenplan!$A$4:$B$31,2))","v":""}]
[null,"",{"$f":"IF(B69=\"\",\"\",VLOOKUP(B69,Kontenplan!$A$4:$B$31,2))","v":""},null,null,{"$f":"IF(E69=\"\",\"\",VLOOKUP(E69,Kontenplan!$A$4:$B$31,2))","v":""}]
[]
["10.","Banküberweisung an die Cotton AG unter Abzug von 3% Skonto, für den Bezug von Rohstoffen.",null,"Lastschrift",{"$f":"E74-E73-E72","v":11543},{"$f":"IF(AND(B76=\"4400\",E76=\"2800\",E77=\"2002\",E78=\"2600\"),\"Die Konten sind richtig!\",\"Mindestens ein Konto ist falsch!\")","v":"Mindestens ein Konto ist falsch!"}]
[null,null,null,"Skonto",{"$f":"ROUND((E74*3%)-(E74*3%*($G$4*100))/(100+($G$4*100)),2)","v":300}]
["Geschäftsvorfall",null,null,"USt.",{"$f":"ROUND(E72*$G$4,2)","v":57},{"$f":"IF(AND(D76=E74,E74,G76=E71,G77=E72,G78=E73),\"Die Beträge sind richtig!\",\"Mindestens ein Betrag ist falsch!\")","v":"Mindestens ein Betrag ist falsch!"}]
[null,null,null,"Bruttobetrag",11900,{"$f":"IF(AND(F71=\"Die Konten sind richtig!\",F73=\"Die Beträge sind richtig!\"),\"Alles richtig!\",\"Es sind noch Fehler vorhanden!\")","v":"Es sind noch Fehler vorhanden!"}]
[null,"Soll","Konto","€","Haben","Konto","€"]
["Buchungssatz","",{"$f":"IF(B76=\"\",\"\",VLOOKUP(B76,Kontenplan!$A$4:$B$31,2))","v":""},null,"",{"$f":"IF(E76=\"\",\"\",VLOOKUP(E76,Kontenplan!$A$4:$B$31,2))","v":""}]
[null,null,{"$f":"IF(B77=\"\",\"\",VLOOKUP(B77,Kontenplan!$A$4:$B$31,2))","v":""},null,"",{"$f":"IF(E77=\"\",\"\",VLOOKUP(E77,Kontenplan!$A$4:$B$31,2))","v":""}]
[null,null,{"$f":"IF(B78=\"\",\"\",VLOOKUP(B78,Kontenplan!$A$4:$B$31,2))","v":""},null,"",{"$f":"IF(E78=\"\",\"\",VLOOKUP(E78,Kontenplan!$A$4:$B$31,2))","v":""}]
[]
["11.","Verkauf von fertigen Erzeugnissen auf Ziel,",null,"netto",58000,{"$f":"IF(AND(B84=\"2400\",E84=\"5000\",E85=\"4800\"),\"Die Konten sind richtig!\",\"Mindestens ein Konto ist falsch!\")","v":"Mindestens ein Konto ist falsch!"}]
["Geschäftsvorfall",null,null,"USt.",{"$f":"E80*$G$4","v":11020},{"$f":"IF(AND(D84=E82,G84=E80,G85=E81),\"Die Beträge sind richtig!\",\"Mindestens ein Betrag ist falsch!\")","v":"Mindestens ein Betrag ist falsch!"}]
[null,null,null,"brutto",{"$f":"SUM(E80:E81)","v":69020},{"$f":"IF(AND(F80=\"Die Konten sind richtig!\",F81=\"Die Beträge sind richtig!\"),\"Alles richtig!\",\"Es sind noch Fehler vorhanden!\")","v":"Es sind noch Fehler vorhanden!"}]
[null,"Soll","Konto","€","Haben","Konto","€"]
["Buchungssatz","",{"$f":"IF(B84=\"\",\"\",VLOOKUP(B84,Kontenplan!$A$4:$B$31,2))","v":""},null,"",{"$f":"IF(E84=\"\",\"\",VLOOKUP(E84,Kontenplan!$A$4:$B$31,2))","v":""}]
[null,null,{"$f":"IF(B85=\"\",\"\",VLOOKUP(B85,Kontenplan!$A$4:$B$31,2))","v":""},null,"",{"$f":"IF(E85=\"\",\"\",VLOOKUP(E85,Kontenplan!$A$4:$B$31,2))","v":""}]
[]
["12.","Wir zahlen Fracht für den Verkauf von Fertigen Erzeugnissen aus Geschäftsvorfall 11 bar, ",null,"netto",1100,{"$f":"IF(AND(B91=\"6140\",B92=\"2600\",E91=\"2880\"),\"Die Konten sind richtig!\",\"Mindestens ein Konto ist falsch!\")","v":"Mindestens ein Konto ist falsch!"}]
["Geschäftsvorfall",null,null,"USt.",{"$f":"E87*$G$4","v":209},{"$f":"IF(AND(D91=E87,D92=E88,G91=E89),\"Die Beträge sind richtig!\",\"Mindestens ein Betrag ist falsch!\")","v":"Mindestens ein Betrag ist falsch!"}]
[null,null,null,"brutto",{"$f":"SUM(E87:E88)","v":1309},{"$f":"IF(AND(F87=\"Die Konten sind richtig!\",F88=\"Die Beträge sind richtig!\"),\"Alles richtig!\",\"Es sind noch Fehler vorhanden!\")","v":"Es sind noch Fehler vorhanden!"}]
[null,"Soll","Konto","€","Haben","Konto","€"]
["Buchungssatz","",{"$f":"IF(B91=\"\",\"\",VLOOKUP(B91,Kontenplan!$A$4:$B$31,2))","v":""},null,"",{"$f":"IF(E91=\"\",\"\",VLOOKUP(E91,Kontenplan!$A$4:$B$31,2))","v":""}]
[null,"",{"$f":"IF(B92=\"\",\"\",VLOOKUP(B92,Kontenplan!$A$4:$B$31,2))","v":""},null,null,{"$f":"IF(E92=\"\",\"\",VLOOKUP(E92,Kontenplan!$A$4:$B$31,2))","v":""}]
[]
["Abschlussangaben"]
["A1","Endbestände lt. Inventur",null,null,null,{"$f":"IF(AND(B99=\"8010\",E99=\"2100\",B100=\"8010\",E100=\"2200\"),\"Die Konten sind richtig!\",\"Mindestens ein Konto ist falsch!\")","v":"Mindestens ein Konto ist falsch!"}]
["Abschlussangabe",null,"           - Unfertige Erzeugnisse",null,21500,{"$f":"IF(AND(D99=E96,D100=E97,G99=E96,G100=E97),\"Die Beträge sind richtig!\",\"Mindestens ein Betrag ist falsch!\")","v":"Mindestens ein Betrag ist falsch!"}]
[null,null,"           - Fertige Erzeugnisse",null,42000,{"$f":"IF(AND(F95=\"Die Konten sind richtig!\",F96=\"Die Beträge sind richtig!\"),\"Alles richtig!\",\"Es sind noch Fehler vorhanden!\")","v":"Es sind noch Fehler vorhanden!"}]
[null,"Soll","Konto","€","Haben","Konto","€"]
["Buchungssatz","",{"$f":"IF(B99=\"\",\"\",VLOOKUP(B99,Kontenplan!$A$4:$B$31,2))","v":""},null,"",{"$f":"IF(E99=\"\",\"\",VLOOKUP(E99,Kontenplan!$A$4:$B$31,2))","v":""}]
[null,"",{"$f":"IF(B100=\"\",\"\",VLOOKUP(B100,Kontenplan!$A$4:$B$31,2))","v":""},null,"",{"$f":"IF(E100=\"\",\"\",VLOOKUP(E100,Kontenplan!$A$4:$B$31,2))","v":""}]
[]
["A2","Abschreibungen auf Sachanlagen",null,null,null,{"$f":"IF(AND(B107=\"6520\",B108=\"6520\",B109=\"6520\",E107=\"0700\",E108=\"0800\",E109=\"0840\"),\"Die Konten sind richtig!\",\"Mindestens ein Konto ist falsch!\")","v":"Mindestens ein Konto ist falsch!"}]
[null,"     - Technische Anlagen und Maschinen",null,null,12500]
["Abschlussangabe","     - Betriebs- und Geschäftsausstattung",null,null,8700,{"$f":"IF(AND(D107=E103,D108=E104,D109=E105,G107=E103,G108=E104,G109=E105),\"Die Beträge sind richtig!\",\"Mindestens ein Betrag ist falsch!\")","v":"Mindestens ein Betrag ist falsch!"}]
[null,"     - Fuhrpark",null,null,14000,{"$f":"IF(AND(F102=\"Die Konten sind richtig!\",F104=\"Die Beträge sind richtig!\"),\"Alles richtig!\",\"Es sind noch Fehler vorhanden!\")","v":"Es sind noch Fehler vorhanden!"}]
[null,"Soll","Konto","€","Haben","Konto","€"]
["Buchungssatz","",{"$f":"IF(B107=\"\",\"\",VLOOKUP(B107,Kontenplan!$A$4:$B$31,2))","v":""},null,"",{"$f":"IF(E107=\"\",\"\",VLOOKUP(E107,Kontenplan!$A$4:$B$31,2))","v":""}]
[null,"",{"$f":"IF(B108=\"\",\"\",VLOOKUP(B108,Kontenplan!$A$4:$B$31,2))","v":""},null,"",{"$f":"IF(E108=\"\",\"\",VLOOKUP(E108,Kontenplan!$A$4:$B$31,2))","v":""}]
[null,"",{"$f":"IF(B109=\"\",\"\",VLOOKUP(B109,Kontenplan!$A$4:$B$31,2))","v":""},null,"",{"$f":"IF(E109=\"\",\"\",VLOOKUP(E109,Kontenplan!$A$4:$B$31,2))","v":""}]
[]
[{"$f":"IF(AND(F8=\"Alles richtig!\",F15=\"Alles richtig!\",F23=\"Alles richtig!\",F31=\"Alles richtig!\",F38=\"Alles richtig!\",F45=\"Alles richtig!\",F52=\"Alles richtig!\",F59=\"Alles richtig!\",F66=\"Alles richtig!\",F74=\"Alles richtig!\",F82=\"Alles richtig!\",F89=\"Alles richtig!\",F97=\"Alles richtig!\",F97=\"Alles richtig!\",F105=\"Alles richtig!\"),\"Die Buchungen im Grundbuch sind richtig!\",\"Das Grundbuch ist noch nicht vollständig!\")","v":"Das Grundbuch ist noch nicht vollständig!"}]

{"sheet":"Hauptbuch","index":2,"n_rows":1113,"n_cols":12,"rows_kept":1113,"cut":false,"hidden":false,"merged":[[95,1,95,3],[95,6,95,8],[101,1,101,3],[101,6,101,8],[100,1,100,8],[155,11,155,12],[151,1,151,8],[152,1,152,3],[152,6,152,8],[85,1,85,8],[94,1,94,8],[139,1,139,8],[24,1,24,8],[62,1,62,8],[112,1,112,8],[79,1,79,8],[120,1,120,8],[86,1,86,3],[86,6,86,8],[126,1,126,8],[132,1,132,8],[105,1,105,3],[105,6,105,8],[113,1,113,3],[113,6,113,8],[121,1,121,3],[121,6,121,8],[127,1,127,3],[104,1,104,8],[50,1,50,8],[0,0,0,9],[2,1,2,8],[6,1,6,8],[12,1,12,8],[25,1,25,3],[25,6,25,8],[32,1,32,3],[31,1,31,8],[19,1,19,3],[19,6,19,8],[18,1,18,8],[36,1,36,8],[56,1,56,8],[42,1,42,8],[46,1,46,8],[37,1,37,3],[37,6,37,8],[43,1,43,3],[3,1,3,3],[3,6,3,8],[7,1,7,3],[7,6,7,8],[13,1,13,3],[13,6,13,8],[51,1,51,3],[51,6,51,8],[57,1,57,3],[57,6,57,8],[47,6,47,8],[32,6,32,8],[43,6,43,8],[47,1,47,3],[63,1,63,3],[63,6,63,8],[80,1,80,3],[80,6,80,8],[69,1,69,8],[70,1,70,3],[70,6,70,8],[146,1,146,3],[146,6,146,8],[127,6,127,8],[133,1,133,3],[133,6,133,8],[140,1,140,3],[140,6,140,8],[145,1,145,8],[15,11,15,12],[16,11,16,12],[21,11,21,12],[22,11,22,12],[3,11,3,12],[4,11,4,12],[9,11,9,12],[10,11,10,12],[38,11,38,12],[39,11,39,12],[43,11,43,12],[44,11,44,12],[27,11,27,12],[28,11,28,12],[33,11,33,12],[34,11,34,12],[59,11,59,12],[60,11,60,12],[65,11,65,12],[66,11,66,12],[47,11,47,12],[48,11,48,12],[53,11,53,12],[54,11,54,12],[88,11,88,12],[89,11,89,12],[97,11,97,12],[98,11,98,12],[72,11,72,12],[73,11,73,12],[82,11,82,12],[83,11,83,12],[116,11,116,12],[117,11,117,12],[123,11,123,12],[124,11,124,12],[101,11,101,12],[102,11,102,12],[107,11,107,12],[108,11,108,12],[142,11,142,12],[143,11,143,12],[148,11,148,12],[149,11,149,12],[128,11,128,12],[129,11,129,12],[136,11,136,12],[137,11,137,12]]}
["Hauptbuch"]
[]
["Soll","0500 Grundstücke und Bauten",null,null,null,null,null,null,null,"Haben"]
["Nr.","Kontenanruf",null,null,"Euro","Nr.","Kontenanruf",null,null,"Euro",{"$f":"IF(L4=\"Kontenanrufe vollständig!\",1,2)","v":2},{"$f":"IF(G5=8010,\"Kontenanrufe vollständig!\",\"Kontenanrufe nicht vollständig!\")","v":"Kontenanrufe nicht vollständig!"}]
["AB","8000",null,null,{"$f":"Bilanzbuch!C4","v":1150000},"SB",null,null,null,null,{"$f":"IF(L5=\"Saldo richtig!\",1,2)","v":2},{"$f":"IF(J5=1150000,\"Saldo richtig!\",\"Ermitteln Sie den richtigen Saldo!\")","v":"Ermitteln Sie den richtigen Saldo!"}]
[]
["Soll","0700 Technische Anlagen und Maschinen",null,null,null,null,null,null,null,"Haben"]
["Nr.","Kontenanruf",null,null,"Euro","Nr.","Kontenanruf",null,null,"Euro"]
["AB","8000",null,null,{"$f":"Bilanzbuch!C5","v":640000},"A2"]
[null,null,null,null,null,"SB",null,null,null,null,{"$f":"IF(L10=\"Kontenanrufe vollständig!\",1,2)","v":2},{"$f":"IF(AND(G9=6520,G10=8010),\"Kontenanrufe vollständig!\",\"Kontenanrufe nicht vollständig!\")","v":"Kontenanrufe nicht vollständig!"}]
[null,null,null,null,null,null,null,null,null,null,{"$f":"IF(L11=\"Saldo richtig!\",1,2)","v":2},{"$f":"IF(J10=627500,\"Saldo richtig!\",\"Ermitteln Sie den richtigen Saldo!\")","v":"Ermitteln Sie den richtigen Saldo!"}]
[]
["Soll","0800 Betriebs- und Geschäftsausstattung",null,null,null,null,null,null,null,"Haben"]
["Nr.","Kontenanruf",null,null,"Euro","Nr.","Kontenanruf",null,null,"Euro"]
["AB","8000",null,null,{"$f":"Bilanzbuch!C6","v":98000},"A2"]
[null,null,null,null,null,"SB",null,null,null,null,{"$f":"IF(L16=\"Kontenanrufe vollständig!\",1,2)","v":2},{"$f":"IF(AND(G15=6520,G16=8010),\"Kontenanrufe vollständig!\",\"Kontenanrufe nicht vollständig!\")","v":"Kontenanrufe nicht vollständig!"}]
[null,null,null,null,null,null,null,null,null,null,{"$f":"IF(L17=\"Saldo richtig!\",1,2)","v":2},{"$f":"IF(J16=89300,\"Saldo richtig!\",\"Ermitteln Sie den richtigen Saldo!\")","v":"Ermitteln Sie den richtigen Saldo!"}]
[]
["Soll","0840 Fuhrpark",null,null,null,null,null,null,null,"Haben"]
["Nr.","Kontenanruf",null,null,"Euro","Nr.","Kontenanruf",null,null,"Euro"]
["AB","8000",null,null,{"$f":"Bilanzbuch!C7","v":105000},"A2"]
["4.",null,null,null,null,"SB",null,null,null,null,{"$f":"IF(L22=\"Kontenanrufe vollständig!\",1,2)","v":2},{"$f":"IF(AND(B22=4400,G21=6520,G22=8010),\"Kontenanrufe vollständig!\",\"Kontenanrufe nicht vollständig!\")","v":"Kontenanrufe nicht vollständig!"}]
[null,null,null,null,null,null,null,null,null,null,{"$f":"IF(L23=\"Saldo richtig!\",1,2)","v":2},{"$f":"IF(J22=133000,\"Saldo richtig!\",\"Ermitteln Sie den richtigen Saldo!\")","v":"Ermitteln Sie den richtigen Saldo!"}]
[]
["Soll","2000 Rohstoffe",null,null,null,null,null,null,null,"Haben"]
["Nr.","Kontenanruf",null,null,"Euro","Nr.","Kontenanruf",null,null,"Euro"]
["AB","8000",null,null,{"$f":"Bilanzbuch!C8","v":94000},"5."]
["1.",null,null,null,null,"A",null,null,null,null,{"$f":"IF(L28=\"Kontenanrufe vollständig!\",1,2)","v":2},{"$f":"IF(AND(B28=4400,B29=2001,G27=4400,G28=2002,G29=8010),\"Kontenanrufe vollständig!\",\"Kontenanrufe nicht vollständig!\")","v":"Kontenanrufe nicht vollständig!"}]
["A",null,null,null,null,"SB",null,null,null,null,{"$f":"IF(L29=\"Saldo richtig!\",1,2)","v":2},{"$f":"IF(J29=131200,\"Saldo richtig!\",\"Ermitteln Sie den richtigen Saldo!\")","v":"Ermitteln Sie den richtigen Saldo!"}]
[]
[]
["Soll","2001 Bezugskosten (Rohstoffe)",null,null,null,null,null,null,null,"Haben"]
["Nr.","Kontenanruf",null,null,"Euro","Nr.","Kontenanruf",null,null,"Euro"]
["2.",null,null,null,null,"A",null,null,null,null,{"$f":"IF(L34=\"Kontenanrufe vollständig!\",1,2)","v":2},{"$f":"IF(AND(B34=2880,G34=2000),\"Kontenanrufe vollständig!\",\"Kontenanrufe nicht vollständig!\")","v":"Kontenanrufe nicht vollständig!"}]
[null,null,null,null,null,null,null,null,null,null,{"$f":"IF(L35=\"Saldo richtig!\",1,2)","v":2},{"$f":"IF(J34=1200,\"Saldo richtig!\",\"Ermitteln Sie den richtigen Saldo!\")","v":"Ermitteln Sie den richtigen Saldo!"}]
[]
["Soll","2002 Nachlässe (Rohstoffe)",null,null,null,null,null,null,null,"Haben"]
["Nr.","Kontenanruf",null,null,"Euro","Nr.","Kontenanruf",null,null,"Euro"]
["A",2000,null,null,{"$f":"E41","v":0},"8.",null,null,null,null,{"$f":"IF(L39=\"Kontenanrufe vollständig!\",1,2)","v":2},{"$f":"IF(AND(B39=2000,G39=4400,G40=4400),\"Kontenanrufe vollständig!\",\"Kontenanrufe nicht vollständig!\")","v":"Kontenanrufe nicht vollständig!"}]
[null,null,null,null,null,"10.",null,null,null,null,{"$f":"IF(L40=\"Saldo richtig!\",1,2)","v":2},{"$f":"IF(E39=2500,\"Saldo richtig!\",\"Ermitteln Sie den richtigen Saldo!\")","v":"Ermitteln Sie den richtigen Saldo!"}]
[]
[]
["Soll","2020 Hilfsstoffe",null,null,null,null,null,null,null,"Haben"]
["Nr.","Kontenanruf",null,null,"Euro","Nr.","Kontenanruf",null,null,"Euro",{"$f":"IF(L44=\"Kontenanrufe vollständig!\",1,2)","v":2},{"$f":"IF(G45=8010,\"Kontenanrufe vollständig!\",\"Kontenanrufe nicht vollständig!\")","v":"Kontenanrufe nicht vollständig!"}]
["AB","8000",null,null,{"$f":"Bilanzbuch!C9","v":24000},"SB",null,null,null,null,{"$f":"IF(L45=\"Saldo richtig!\",1,2)","v":2},{"$f":"IF(J45=24000,\"Saldo richtig!\",\"Ermitteln Sie den richtigen Saldo!\")","v":"Ermitteln Sie den richtigen Saldo!"}]
[]
["Soll","2030 Betriebsstoffe",null,null,null,null,null,null,null,"Haben"]
["Nr.","Kontenanruf",null,null,"Euro","Nr.","Kontenanruf",null,null,"Euro",{"$f":"IF(L48=\"Kontenanrufe vollständig!\",1,2)","v":2},{"$f":"IF(G49=8010,\"Kontenanrufe vollständig!\",\"Kontenanrufe nicht vollständig!\")","v":"Kontenanrufe nicht vollständig!"}]
["AB","8000",null,null,{"$f":"Bilanzbuch!C10","v":9200},"SB",null,null,null,null,{"$f":"IF(L49=\"Saldo richtig!\",1,2)","v":2},{"$f":"IF(J49=9200,\"Saldo richtig!\",\"Ermitteln Sie den richtigen Saldo!\")","v":"Ermitteln Sie den richtigen Saldo!"}]
[]
["Soll","2100 Unfertige Erzeugnisse",null,null,null,null,null,null,null,"Haben"]
["Nr.","Kontenanruf",null,null,"Euro","Nr.","Kontenanruf",null,null,"Euro"]
["AB","8000",null,null,{"$f":"Bilanzbuch!C11","v":29000},"SB",null,null,null,null,"X"]
[null,null,null,null,null,"A",null,null,null,null,{"$f":"IF(L54=\"Kontenanrufe vollständig!\",1,2)","v":2},{"$f":"IF(G54=5200,\"Kontenanrufe vollständig!\",\"Kontenanrufe nicht vollständig!\")","v":"Kontenanrufe nicht vollständig!"}]
[null,null,null,null,null,null,null,null,null,null,{"$f":"IF(L55=\"Saldo richtig!\",1,2)","v":2},{"$f":"IF(J54=7500,\"Saldo richtig!\",\"Ermitteln Sie den richtigen Saldo!\")","v":"Ermitteln Sie den richtigen Saldo!"}]
[]
["Soll","2200 Fertige Erzeugnisse",null,null,null,null,null,null,null,"Haben"]
["Nr.","Kontenanruf",null,null,"Euro","Nr.","Kontenanruf",null,null,"Euro"]
["AB","8000",null,null,null,"SB"]
["A",null,null,null,null,null,null,null,null,null,{"$f":"IF(L60=\"Kontenanrufe vollständig!\",1,2)","v":2},{"$f":"IF(B60=5200,\"Kontenanrufe vollständig!\",\"Kontenanrufe nicht vollständig!\")","v":"Kontenanrufe nicht vollständig!"}]
[null,null,null,null,null,null,null,null,null,null,{"$f":"IF(L61=\"Saldo richtig!\",1,2)","v":2},{"$f":"IF(E60=3000,\"Saldo richtig!\",\"Ermitteln Sie den richtigen Saldo!\")","v":"Ermitteln Sie den richtigen Saldo!"}]
[]
["Soll","2400 Forderungen aus Lieferungen und Leistungen",null,null,null,null,null,null,null,"Haben"]
["Nr.","Kontenanruf",null,null,"Euro","Nr.","Kontenanruf",null,null,"Euro"]
["AB","8000",null,null,{"$f":"Bilanzbuch!C13","v":74000},"3."]
["11.",null,null,null,null,"7.",null,null,null,null,{"$f":"IF(L66=\"Kontenanrufe vollständig!\",1,2)","v":2},{"$f":"IF(AND(B66=5000,C66=4800,G65=2800,H65=5001,I65=4800,G66=5001,H66=4800,G67=8010),\"Kontenanrufe vollständig!\",\"Kontenanrufe nicht vollständig!\")","v":"Kontenanrufe nicht vollständig!"}]
[null,null,null,null,null,"SB",null,null,null,null,{"$f":"IF(L67=\"Saldo richtig!\",1,2)","v":2},{"$f":"IF(J67=(E65+E66-J65-J66),\"Saldo richtig!\",\"Ermitteln Sie den richtigen Saldo!\")","v":"Ermitteln Sie den richtigen Saldo!"}]
[]
[]
["Soll","2600 Vorsteuer",null,null,null,null,null,null,null,"Haben"]
["Nr.","Kontenanruf",null,null,"Euro","Nr.","Kontenanruf",null,null,"Euro"]
["1.",null,null,null,null,"5."]
["2.",null,null,null,null,"8.",null,null,null,null,{"$f":"IF(L73=\"Kontenanrufe vollständig!\",1,2)","v":2},{"$f":"IF(AND(B72=4400,B73=2880,B74=4400,B75=2880,B76=2880,B77=2880,G72=4400,G73=4400,G74=4400,G75=4800),\"Kontenanrufe vollständig!\",\"Kontenanrufe nicht vollständig!\")","v":"Kontenanrufe nicht vollständig!"}]
["4.",null,null,null,null,"10.",null,null,null,null,{"$f":"IF(L74=\"Saldo richtig!\",1,2)","v":2},{"$f":"IF(AND(J75>0,J75=(E72+E73+E74+E75+E76+E77-J72-J73-J74)),\"Saldo richtig!\",\"Ermitteln Sie den richtigen Saldo!\")","v":"Ermitteln Sie den richtigen Saldo!"}]
["6.",null,null,null,null,"A"]
["9."]
["11."]
[]
[]
["Soll","2800 Kreditinstitute/Bank",null,null,null,null,null,null,null,"Haben"]
["Nr.","Kontenanruf",null,null,"Euro","Nr.","Kontenanruf",null,null,"Euro"]
["AB","8000",null,null,{"$f":"Bilanzbuch!C14","v":89000},"10."]
["3.",null,null,null,null,"SB",null,null,null,null,{"$f":"IF(L83=\"Kontenanrufe vollständig!\",1,2)","v":2},{"$f":"IF(AND(B83=2400,G82=4400,G83=8010),\"Kontenanrufe vollständig!\",\"Kontenanrufe nicht vollständig!\")","v":"Kontenanrufe nicht vollständig!"}]
[null,null,null,null,null,null,null,null,null,null,{"$f":"IF(L84=\"Saldo richtig!\",1,2)","v":2},{"$f":"IF(J83=(E82+E83-J82),\"Saldo richtig!\",\"Ermitteln Sie den richtigen Saldo!\")","v":"Ermitteln Sie den richtigen Saldo!"}]
[]
["Soll","2880 Kasse",null,null,null,null,null,null,null,"Haben"]
["Nr.","Kontenanruf",null,null,"Euro","Nr.","Kontenanruf",null,null,"Euro"]
["AB","8000",null,null,{"$f":"Bilanzbuch!C15","v":9300},"2."]
[null,null,null,null,null,"6.",null,null,null,null,{"$f":"IF(L89=\"Kontenanrufe vollständig!\",1,2)","v":2},{"$f":"IF(AND(G88=2001,H88=2600,G89=6160,H89=2600,G90=6140,H90=2600,G91=6140,H91=2600,G92=8010),\"Kontenanrufe vollständig!\",\"Kontenanrufe nicht vollständig!\")","v":"Kontenanrufe nicht vollständig!"}]
[null,null,null,null,null,"9.",null,null,null,null,{"$f":"IF(L90=\"Saldo richtig!\",1,2)","v":2},{"$f":"IF(J92=(E88-J88-J89-J90-J91),\"Saldo richtig!\",\"Ermitteln Sie den richtigen Saldo!\")","v":"Ermitteln Sie den richtigen Saldo!"}]
[null,null,null,null,null,"11."]
[null,null,null,null,null,"SB"]
[]
[]
["Soll","3000 Eigenkapital",null,null,null,null,null,null,null,"Haben"]
["Nr.","Kontenanruf",null,null,"Euro","Nr.","Kontenanruf",null,null,"Euro","X"]
["SB",null,null,null,null,"AB",8000,null,null,{"$f":"Bilanzbuch!F4","v":1348400}]
[null,null,null,null,null,"GuV",null,null,null,null,{"$f":"IF(L98=\"Kontenanrufe vollständig!\",1,2)","v":2},{"$f":"IF(AND(G98=8020,B97=8010),\"Kontenanrufe vollständig!\",\"Kontenanrufe nicht vollständig!\")","v":"Kontenanrufe nicht vollständig!"}]
[null,null,null,null,null,null,null,null,null,null,{"$f":"IF(L99=\"Saldo richtig!\",1,2)","v":2},{"$f":"IF(E97=1362180,\"Saldo richtig!\",\"Ermitteln Sie den richtigen Saldo!\")","v":"Ermitteln Sie den richtigen Saldo!"}]
[]
["Soll","4200 Verbindlichkeiten gegenüber Kreditinstituten (Darlehen)",null,null,null,null,null,null,null,"Haben"]
["Nr.","Kontenanruf",null,null,"Euro","Nr.","Kontenanruf",null,null,"Euro",{"$f":"IF(L102=\"Kontenanrufe vollständig!\",1,2)","v":2},{"$f":"IF(B103=8010,\"Kontenanrufe vollständig!\",\"Kontenanrufe nicht vollständig!\")","v":"Kontenanrufe nicht vollständig!"}]
["SB",null,null,null,null,"AB","8000",null,null,{"$f":"Bilanzbuch!F5","v":940000},{"$f":"IF(L103=\"Saldo richtig!\",1,2)","v":2},{"$f":"IF(E103=940000,\"Saldo richtig!\",\"Ermitteln Sie den richtigen Saldo!\")","v":"Ermitteln Sie den richtigen Saldo!"}]
[]
["Soll","4400 Verbindlichkeiten aus Lieferungen und Leistungen",null,null,null,null,null,null,null,"Haben"]
["Nr.","Kontenanruf",null,null,"Euro","Nr.","Kontenanruf",null,null,"Euro"]
["5.",null,null,null,null,"AB",8000,null,null,{"$f":"Bilanzbuch!F6","v":62000}]
["8.",null,null,null,null,"1.",null,null,null,null,{"$f":"IF(L108=\"Kontenanrufe vollständig!\",1,2)","v":2},{"$f":"IF(AND(B107=2000,C107=2600,B108=2002,C108=2600,B109=2800,C109=2002,D109=2600,B110=8010,G108=2000,H108=2600,G109=\"0840\",H109=2600),\"Kontenanrufe vollständig!\",\"Kontenanrufe nicht vollständig!\")","v":"Kontenanrufe nicht vollständig!"}]
["10.",null,null,null,null,"4.",null,null,null,null,{"$f":"IF(L109=\"Saldo richtig!\",1,2)","v":2},{"$f":"IF(E110=(J107+J108+J109-E107-E108-E109),\"Saldo richtig!\",\"Ermitteln Sie den richtigen Saldo!\")","v":"Ermitteln Sie den richtigen Saldo!"}]
["SB"]
[]
[]
["Soll","4800 Umsatzsteuer",null,null,null,null,null,null,null,"Haben"]
["Nr.","Kontenanruf",null,null,"Euro","Nr.","Kontenanruf",null,null,"Euro"]
["3.",null,null,null,null,"AB","8000",null,null,{"$f":"Bilanzbuch!F7","v":10100}]
["7.",null,null,null,null,"11."]
["A",null,null,null,null,null,null,null,null,null,{"$f":"IF(L117=\"Kontenanrufe vollständig!\",1,2)","v":2},{"$f":"IF(AND(B115=2400,B116=2400,B117=2600,B118=8010,G116=2400),\"Kontenanrufe vollständig!\",\"Kontenanrufe nicht vollständig!\")","v":"Kontenanrufe nicht vollständig!"}]
["SB",null,null,null,null,null,null,null,null,null,{"$f":"IF(L118=\"Saldo richtig!\",1,2)","v":2},{"$f":"IF(E118=(J115+J116-E115-E116-E117),\"Saldo richtig!\",\"Ermitteln Sie den richtigen Saldo!\")","v":"Ermitteln Sie den richtigen Saldo!"}]
[]
[]
["Soll","5000 Umsatzerlöse",null,null,null,null,null,null,null,"Haben"]
["Nr.","Kontenanruf",null,null,"Euro","Nr.","Kontenanruf",null,null,"Euro"]
["A",null,null,null,null,"11."]
["GuV",null,null,null,null,null,null,null,null,null,{"$f":"IF(L124=\"Kontenanrufe vollständig!\",1,2)","v":2},{"$f":"IF(AND(B123=5001,B124=8020,G123=2400),\"Kontenanrufe vollständig!\",\"Kontenanrufe nicht vollständig!\")","v":"Kontenanrufe nicht vollständig!"}]
[null,null,null,null,null,null,null,null,null,null,{"$f":"IF(L125=\"Saldo richtig!\",1,2)","v":2},{"$f":"IF(E124=56350,\"Saldo richtig!\",\"Ermitteln Sie den richtigen Saldo!\")","v":"Ermitteln Sie den richtigen Saldo!"}]
[]
["Soll","5001 Erlösberichtigungen",null,null,null,null,null,null,null,"Haben"]
["Nr.","Kontenanruf",null,null,"Euro","Nr.","Kontenanruf",null,null,"Euro"]
["3.",null,null,null,null,"A",null,null,null,null,{"$f":"IF(L129=\"Kontenanrufe vollständig!\",1,2)","v":2},{"$f":"IF(AND(B129=2400,B130=2400,G129=5000),\"Kontenanrufe vollständig!\",\"Kontenanrufe nicht vollständig!\")","v":"Kontenanrufe nicht vollständig!"}]
["7.",null,null,null,null,null,null,null,null,null,{"$f":"IF(L130=\"Saldo richtig!\",1,2)","v":2},{"$f":"IF(J129=1650,\"Saldo richtig!\",\"Ermitteln Sie den richtigen Saldo!\")","v":"Ermitteln Sie den richtigen Saldo!"}]
[]
[]
["Soll","5200 Bestandsveränderunen",null,null,null,null,null,null,null,"Haben"]
["Nr.","Kontenanruf",null,null,"Euro","Nr.","Kontenanruf",null,null,"Euro"]
["A",null,null,null,null,"A"]
[null,null,null,null,null,"GuV"]
[null,null,null,null,null,null,null,null,null,null,{"$f":"IF(L137=\"Kontenanrufe vollständig!\",1,2)","v":2},{"$f":"IF(AND(B135=2100,G135=2200,G136=8020),\"Kontenanrufe vollständig!\",\"Kontenanrufe nicht vollständig!\")","v":"Kontenanrufe nicht vollständig!"}]
[null,null,null,null,null,null,null,null,null,null,{"$f":"IF(L138=\"Saldo richtig!\",1,2)","v":2},{"$f":"IF(J136=4500,\"Saldo richtig!\",\"Ermitteln Sie den richtigen Saldo!\")","v":"Ermitteln Sie den richtigen Saldo!"}]
[]
["Soll","6140 Frachten und Femdlager",null,null,null,null,null,null,null,"Haben"]
["Nr.","Kontenanruf",null,null,"Euro","Nr.","Kontenanruf",null,null,"Euro"]
["9.",null,null,null,null,"GuV"]
["11.",null,null,null,null,null,null,null,null,null,{"$f":"IF(L143=\"Kontenanrufe vollständig!\",1,2)","v":2},{"$f":"IF(AND(B142=2880,B143=2880,G142=8020),\"Kontenanrufe vollständig!\",\"Kontenanrufe nicht vollständig!\")","v":"Kontenanrufe nicht vollständig!"}]
[null,null,null,null,null,null,null,null,null,null,{"$f":"IF(L144=\"Saldo richtig!\",1,2)","v":2},{"$f":"IF(J142=1570,\"Saldo richtig!\",\"Ermitteln Sie den richtigen Saldo!\")","v":"Ermitteln Sie den richtigen Saldo!"}]
[]
["Soll","6160 Fremdinstandhaltung",null,null,null,null,null,null,null,"Haben"]
["Nr.","Kontenanruf",null,null,"Euro","Nr.","Kontenanruf",null,null,"Euro"]
["6.",null,null,null,null,"GuV"]
[null,null,null,null,null,null,null,null,null,null,{"$f":"IF(L149=\"Kontenanrufe vollständig!\",1,2)","v":2},{"$f":"IF(AND(B148=2880,G148=8020),\"Kontenanrufe vollständig!\",\"Kontenanrufe nicht vollständig!\")","v":"Kontenanrufe nicht vollständig!"}]
[null,null,null,null,null,null,null,null,null,null,{"$f":"IF(L150=\"Saldo richtig!\",1,2)","v":2},{"$f":"IF(J148=1300,\"Saldo richtig!\",\"Ermitteln Sie den richtigen Saldo!\")","v":"Ermitteln Sie den richtigen Saldo!"}]
[]
["Soll","6520 Abschreibungen auf Sachanlagen",null,null,null,null,null,null,null,"Haben"]
["Nr.","Kontenanruf",null,null,"Euro","Nr.","Kontenanruf",null,null,"Euro"]
["A2",null,null,null,null,"GuV"]
["A2",null,null,null,null,null,null,null,null,null,{"$f":"IF(L155=\"Kontenanrufe vollständig!\",1,2)","v":2},{"$f":"IF(AND(B154=\"0700\",B155=\"0800\",B156=\"0840\",G154=8020),\"Kontenanrufe vollständig!\",\"Kontenanrufe nicht vollständig!\")","v":"Kontenanrufe nicht vollständig!"}]
["A2",null,null,null,null,null,null,null,null,null,{"$f":"IF(L156=\"Saldo richtig!\",1,2)","v":2},{"$f":"IF(J154=35200,\"Saldo richtig!\",\"Ermitteln Sie den richtigen Saldo!\")","v":"Ermitteln Sie den richtigen Saldo!"}]
[]
[]
[]
[]
[]
[]
[]
[]
[]
[]
[]
[]
[]
[]
[]
[]
[]
[]
[]
[]
[]
[]
[]
[]
[]
[]
[]
[]
[]
[]
[]
[]
[]
[]
[]
[]
[]
[]
[]
[]
[]
[]
[]
[]
[]
[]
[]
[]
[]
[]
[]
[]
[]
[]
[]
[]
[]
[]
[]
[]
[]
[]
[]
[]
[]
[]
[]
[]
[]
[]
[]
[]
[]
[]
[]
[]
[]
[]
[]
[]
[]
[]
[]
[]
[]
[]
[]
[]
[]
[]
[]
[]
[]
[]
[]
[]
[]
[]
[]
[]
[]
[]
[]
[]
[]
[]
[]
[]
[]
[]
[]
[]
[]
[]
[]
[]
[]
[]
[]
[]
[]
[]
[]
[]
[]
[]
[]
[]
[]
[]
[]
[]
[]
[]
[]
[]
[]
[]
[]
[]
[]
[]
[]
[]
[]
[]
[]
[]
[]
[]
[]
[]
[]
[]
[]
[]
[]
[]
[]
[]
[]
[]
[]
[]
[]
[]
[]
[]
[]
[]
[]
[]
[]
[]
[]
[]
[]
[]
[]
[]
[]
[]
[]
[]
[]
[]
[]
[]
[]
[]
[]
[]
[]
[]
[]
[]
[]
[]
[]
[]
[]
[]
[]
[]
[]
[]
[]
[]
[]
[]
[]
[]
[]
[]
[]
[]
[]
[]
[]
[]
[]
[]
[]
[]
[]
[]
[]
[]
[]
[]
[]
[]
[]
[]
[]
[]
[]
[]
[]
[]
[]
[]
[]
[]
[]
[]
[]
[]
[]
[]
[]
[]
[]
[]
[]
[]
[]
[]
[]
[]
[]
[]
[]
[]
[]
[]
[]
[]
[]
[]
[]
[]
[]
[]
[]
[]
[]
[]
[]
[]
[]
[]
[]
[]
[]
[]
[]
[]
[]
[]
[]
[]
[]
[]
[]
[]
[]
[]
[]
[]
[]
[]
[]
[]
[]
[]
[]
[]
[]
[]
[]
[]
[]
[]
[]
[]
[]
[]
[]
[]
[]
[]
[]
[]
[]
[]
[]
[]
[]
[]
[]
[]
[]
[]
[]
[]
[]
[]
[]
[]
[]
[]
[]
[]
[]
[]
[]
[]
[]
[]
[]
[]
[]
[]
[]
[]
[]
[]
[]
[]
[]
[]
[]
[]
[]
[]
[]
[]
[]
[]
[]
[]
[]
[]
[]
[]
[]
[]
[]
[]
[]
[]
[]
[]
[]
[]
[]
[]
[]
[]
[]
[]
[]
[]
[]
[]
[]
[]
[]
[]
[]
[]
[]
[]
[]
[]
[]
[]
[]
[]
[]
[]
[]
[]
[]
[]
[]
[]
[]
[]
[]
[]
[]
[]
[]
[]
[]
[]
[]
[]
[]
[]
[]
[]
[]
[]
[]
[]
[]
[]
[]
[]
[]
[]
[]
[]
[]
[]
[]
[]
[]
[]
[]
[]
[]
[]
[]
[]
[]
[]
[]
[]
[]
[]
[]
[]
[]
[]
[]
[]
[]
[]
[]
[]
[]
[]
[]
[]
[]
[]
[]
[]
[]
[]
[]
[]
[]
[]
[]
[]
[]
[]
[]
[]
[]
[]
[]
[]
[]
[]
[]
[]
[]
[]
[]
[]
[]
[]
[]
[]
[]
[]
[]
[]
[]
[]
[]
[]
[]
[]
[]
[]
[]
[]
[]
[]
[]
[]
[]
[]
[]
[]
[]
[]
[]
[]
[]
[]
[]
[]
[]
[]
[]
[]
[]
[]
[]
[]
[]
[]
[]
[]
[]
[]
[]
[]
[]
[]
[]
[]
[]
[]
[]
[]
[]
[]
[]
[]
[]
[]
[]
[]
[]
[]
[]
[]
[]
[]
[]
[]
[]
[]
[]
[]
[]
[]
[]
[]
[]
[]
[]
[]
[]
[]
[]
[]
[]
[]
[]
[]
[]
[]
[]
[]
[]
[]
[]
[]
[]
[]
[]
[]
[]
[]
[]
[]
[]
[]
[]
[]
[]
[]
[]
[]
[]
[]
[]
[]
[]
[]
[]
[]
[]
[]
[]
[]
[]
[]
[]
[]
[]
[]
[]
[]
[]
[]
[]
[]
[]
[]
[]
[]
[]
[]
[]
[]
[]
[]
[]
[]
[]
[]
[]
[]
[]
[]
[]
[]
[]
[]
[]
[]
[]
[]
[]
[]
[]
[]
[]
[]
[]
[]
[]
[]
[]
[]
[]
[]
[]
[]
[]
[]
[]
[]
[]
[]
[]
[]
[]
[]
[]
[]
[]
[]
[]
[]
[]
[]
[]
[]
[]
[]
[]
[]
[]
[]
[]
[]
[]
[]
[]
[]
[]
[]
[]
[]
[]
[]
[]
[]
[]
[]
[]
[]
[]
[]
[]
[]
[]
[]
[]
[]
[]
[]
[]
[]
[]
[]
[]
[]
[]
[]
[]
[]
[]
[]
[]
[]
[]
[]
[]
[]
[]
[]
[]
[]
[]
[]
[]
[]
[]
[]
[]
[]
[]
[]
[]
[]
[]
[]
[]
[]
[]
[]
[]
[]
[]
[]
[]
[]
[]
[]
[]
[]
[]
[]
[]
[]
[]
[]
[]
[]
[]
[]
[]
[]
[]
[]
[]
[]
[]
[]
[]
[]
[]
[]
[]
[]
[]
[]
[]
[]
[]
[]
[]
[]
[]
[]
[]
[]
[]
[]
[]
[]
[]
[]
[]
[]
[]
[]
[]
[]
[]
[]
[]
[]
[]
[]
[]
[]
[]
[]
[]
[]
[]
[]
[]
[]
[]
[]
[]
[]
[]
[]
[]
[]
[]
[]
[]
[]
[]
[]
[]
[]
[]
[]
[]
[]
[]
[]
[]
[]
[]
[]
[]
[]
[]
[]
[]
[]
[]
[]
[]
[]
[]
[]
[]
[]
[]
[]
[]
[]
[]
[]
[]
[]
[]
[]
[]
[]
[]
[]
[]
[]
[]
[]
[]
[]
[]
[]
[]
[]
[]
[]
[]
[]
[]
[]
[]
[]
[]
[]
[]
[]
[]
[]
[]
[]
[]
[]
[]
[]
[]
[]
[]
[]
[]
[]
[]
[]
[]
[]
[]
[]
[]
[]
[null,null,null,null,null,null,null,null,null,null,"X"]

{"sheet":"GuV","index":3,"n_rows":8,"n_cols":8,"rows_kept":8,"cut":false,"hidden":false,"merged":[[0,0,0,5],[2,1,2,4],[3,6,4,6],[3,7,4,7]]}
["Gewinn- und Verlustrechnung"]
[]
["Soll","8020 Gewinn und Verlust",null,null,null,"Haben","X"]
["5200",{"$f":"VLOOKUP(A4,Kontenplan!$A$4:$B$31,2)","v":"Bestandsveränderungen"},null,"5000",{"$f":"VLOOKUP(D4,Kontenplan!$A$4:$B$31,2)","v":"Umsatzerlöse"},null,{"$f":"IF(H4=\"Sie haben den Gewinn richtig ermittelt!\",1,2)","v":2},{"$f":"IF(C8=13780,\"Sie haben den Gewinn richtig ermittelt!\",\"Sie haben noch Fehler!\")","v":"Sie haben noch Fehler!"}]
["6140","Frachten und Fremdlager"]
["6160","Fremdinstandhaltung"]
["6520","Abschreibungen auf Sachanlagen"]
[3000,"Eigenkapital"]

{"sheet":"Bilanzbuch","index":4,"n_rows":30,"n_cols":8,"rows_kept":30,"cut":false,"hidden":false,"merged":[[2,1,2,4],[0,0,0,5],[17,1,17,4],[18,6,19,6]]}
["Bilanzbuch"]
[]
["Aktiva","8000 Eröffnungsbilanz",null,null,null,"Passiva"]
["0500",{"$f":"VLOOKUP(A4,Kontenplan!$A$4:$B$31,2)","v":"Grundstücke und Bauten"},1150000,"3000",{"$f":"VLOOKUP(D4,Kontenplan!$A$4:$B$31,2)","v":"Eigenkapital"},{"$f":"F16-SUM(F5:F15)","v":1348400}]
["0700",{"$f":"VLOOKUP(A5,Kontenplan!$A$4:$B$31,2)","v":"Technische Anlagen und Maschinen"},640000,"4200","Verbindlichkeiten g. Kreditinstitute",940000]
["0800",{"$f":"VLOOKUP(A6,Kontenplan!$A$4:$B$31,2)","v":"Beriebs- und Geschäftsausstattung"},98000,"4400",{"$f":"VLOOKUP(D6,Kontenplan!$A$4:$B$31,2)","v":"Verbindlichkeiten a.L.u.L."},62000]
["0840","Fuhrpark",105000,"4800",{"$f":"VLOOKUP(D7,Kontenplan!$A$4:$B$31,2)","v":"Umsatzsteuer"},10100]
["2000",{"$f":"VLOOKUP(A8,Kontenplan!$A$4:$B$31,2)","v":"Rohstoffe"},94000]
["2020",{"$f":"VLOOKUP(A9,Kontenplan!$A$4:$B$31,2)","v":"Hilfsstoffe"},24000]
["2030",{"$f":"VLOOKUP(A10,Kontenplan!$A$4:$B$31,2)","v":"Betriebsstoffe"},9200]
["2100",{"$f":"VLOOKUP(A11,Kontenplan!$A$4:$B$31,2)","v":"Unfertige Erzeugnisse"},29000]
["2200",{"$f":"VLOOKUP(A12,Kontenplan!$A$4:$B$31,2)","v":"Fertige Erzeugnisse"},39000]
["2400",{"$f":"VLOOKUP(A13,Kontenplan!$A$4:$B$31,2)","v":"Forderungen a.L.u.L."},74000]
["2800",{"$f":"VLOOKUP(A14,Kontenplan!$A$4:$B$31,2)","v":"Kreditinstitute/Bank"},89000]
["2880",{"$f":"VLOOKUP(A15,Kontenplan!$A$4:$B$31,2)","v":"Kasse"},9300]
[null,null,{"$f":"SUM(C4:C15)","v":2360500},null,null,{"$f":"C16","v":2360500}]
[]
["Aktiva","8010 Schlussbilanz",null,null,null,"Passiva","X"]
["0500",{"$f":"VLOOKUP(A19,Kontenplan!$A$4:$B$31,2)","v":"Grundstücke und Bauten"},null,"3000",{"$f":"VLOOKUP(D19,Kontenplan!$A$4:$B$31,2)","v":"Eigenkapital"},null,{"$f":"IF(H19=\"Aktiva = Passiva\",1,2)","v":1},{"$f":"IF(C31-F31=0,\"Aktiva = Passiva\",IF(C31-F31>0,\"Aktiva > Passiva\",\"Aktiva < Passiva\"))","v":"Aktiva = Passiva"}]
["0700",{"$f":"VLOOKUP(A20,Kontenplan!$A$4:$B$31,2)","v":"Technische Anlagen und Maschinen"},null,"4200","Verbindlichkeiten g. Kreditinstituten",null,null,{"$f":"CONCATENATE(\"Differenz = \",$C$31-$F$31)","v":"Differenz = 0"}]
["0800",{"$f":"VLOOKUP(A21,Kontenplan!$A$4:$B$31,2)","v":"Beriebs- und Geschäftsausstattung"},null,"4400",{"$f":"VLOOKUP(D21,Kontenplan!$A$4:$B$31,2)","v":"Verbindlichkeiten a.L.u.L."}]
["0840","Fuhrpark",null,"4800",{"$f":"VLOOKUP(D22,Kontenplan!$A$4:$B$31,2)","v":"Umsatzsteuer"}]
["2000",{"$f":"VLOOKUP(A23,Kontenplan!$A$4:$B$31,2)","v":"Rohstoffe"}]
["2020",{"$f":"VLOOKUP(A24,Kontenplan!$A$4:$B$31,2)","v":"Hilfsstoffe"}]
["2030",{"$f":"VLOOKUP(A25,Kontenplan!$A$4:$B$31,2)","v":"Betriebsstoffe"}]
["2100",{"$f":"VLOOKUP(A26,Kontenplan!$A$4:$B$31,2)","v":"Unfertige Erzeugnisse"}]
["2200",{"$f":"VLOOKUP(A27,Kontenplan!$A$4:$B$31,2)","v":"Fertige Erzeugnisse"}]
["2400",{"$f":"VLOOKUP(A28,Kontenplan!$A$4:$B$31,2)","v":"Forderungen a.L.u.L."}]
["2800",{"$f":"VLOOKUP(A29,Kontenplan!$A$4:$B$31,2)","v":"Kreditinstitute/Bank"}]
["2880",{"$f":"VLOOKUP(A30,Kontenplan!$A$4:$B$31,2)","v":"Kasse"}]

{"sheet":"Kontenplan","index":5,"n_rows":31,"n_cols":2,"rows_kept":31,"cut":false,"hidden":false,"merged":[]}
[null,"Kontenplan"]
[]
["Nr.","Konto"]
["0500","Grundstücke und Bauten"]
["0700","Technische Anlagen und Maschinen"]
["0800","Beriebs- und Geschäftsausstattung"]
["0840","Fuhrpark"]
["2000","Rohstoffe"]
["2001","Bezugskosten (Rohstoffe)"]
["2002","Nachlässe (Rohstoffe)"]
["2020","Hilfsstoffe"]
["2030","Betriebsstoffe"]
["2100","Unfertige Erzeugnisse"]
["2200","Fertige Erzeugnisse"]
["2400","Forderungen a.L.u.L."]
["2600","Vorsteuer"]
["2800","Kreditinstitute/Bank"]
["2880","Kasse"]
["3000","Eigenkapital"]
["4200","Verbindlichkeiten g. Kreditinstituten"]
["4400","Verbindlichkeiten a.L.u.L."]
["4800","Umsatzsteuer"]
["5000","Umsatzerlöse"]
["5001","Erlösberichtigungen"]
["5200","Bestandsveränderungen"]
["6140","Frachten und Fremdlager"]
["6160","Fremdinstandhaltung"]
["6520","Abschreibungen auf Sachanlagen"]
["8000","Eröffnungsbilanz"]
["8010","Schlussbilanz"]
["8020","Gewinn und Verlust"]